Workbook

Sheet 订单明细
A1: MM公司客户订单
A2: 订单编号 | B2: 客户姓名 | C2: 产品名称 | D2: 规格 | E2: 单价 | F2: 数量 | G2: 发货日期 | H2: 交货日期
A3: MM07009 | B3: 冯浩 | C3: 美容膏 | D3: 48瓶/件 | E3: 99 | F3: 92 | G3: 2007-03-20 | H3: 2007-03-24
A4: MM07005 | B4: 孙红平 | C4: 深层洁面膏 | D4: 48瓶/件 | E4: 38.7 | F4: 80 | G4: 2007-03-13 | H4: 2007-03-20
A5: MM07007 | B5: 田云飞 | C5: 角质调理露 | D5: 48瓶/件 | E5: 89.9 | F5: 79 | G5: 2007-03-16 | H5: 2007-03-18
A6: MM07010 | B6: 古铭峰 | C6: 粉底 | D6: 48瓶/件 | E6: 78.9 | F6: 75 | G6: 2007-03-22 | H6: 2007-03-27
A7: MM07003 | B7: 胡宏明 | C7: 保湿乳液 | D7: 48瓶/件 | E7: 79.9 | F7: 72 | G7: 2007-03-10 | H7: 2007-03-12
A8: MM07006 | B8: 袁吉 | C8: 柔肤水 | D8: 48瓶/件 | E8: 56.8 | F8: 65 | G8: 2007-03-15 | H8: 2007-03-21
A9: MM07004 | B9: 贺开琪 | C9: 保湿日霜 | D9: 48瓶/件 | E9: 48.9 | F9: 64 | G9: 2007-03-12 | H9: 2007-03-17
A10: MM07002 | B10: 杨晴 | C10: 眼部修护素 | D10: 48支/件 | E10: 68 | F10: 56 | G10: 2007-03-08 | H10: 2007-03-15
A11: MM07011 | B11: 蒲炎 | C11: 染发膏 | D11: 49支/箱 | E11: 28.6 | F11: 56 | G11: 2007-03-25 | H11: 2007-04-02
A12: MM07008 | B12: 刘甜 | C12: 去死皮膏 | D12: 48支/箱 | E12: 102 | F12: 48 | G12: 2007-03-18 | H12: 2007-03-23
A13: MM07012 | B13: 项静 | C13: 香水 | D13: 24瓶/箱 | E13: 120 | F13: 45 | G13: 2007-03-27 | H13: 2007-04-05
A14: MM07001 | B14: 张豪 | C14: 洁肤乳 | D14: 48瓶/件 | E14: 58 | F14: 32 | G14: 2007-03-05 | H14: 2007-03-10

Sheet 订单金额
A1: MM公司客户订单
A2: 订单编号 | B2: 客户姓名 | C2: 所在城市 | D2: 订单金额 | E2: 其他费用 | F2: 预付
A3: MM07001 | B3: 张豪 | C3: 上海 | D3: =订单明细!E3*订单明细!F3 -> 9108 | E3: 82.96 | F3: =D3*50% -> 4554
A4: MM07002 | B4: 杨晴 | C4: 成都 | D4: =订单明细!E4*订单明细!F4 -> 3096 | E4: 101.49 | F4: =D4*50% -> 1548
A5: MM07003 | B5: 胡宏明 | C5: 杭州 | D5: =订单明细!E5*订单明细!F5 -> 7102.1 | E5: 172.2 | F5: 3551.05
A6: MM07004 | B6: 贺开琪 | C6: 北京 | D6: =订单明细!E6*订单明细!F6 -> 5917.5 | E6: 162.6 | F6: 2958.75
A7: MM07005 | B7: 孙红平 | C7: 重庆 | D7: =订单明细!E7*订单明细!F7 -> 5752.8 | E7: 141.01 | F7: 2876.4
A8: MM07006 | B8: 袁吉 | C8: 广州 | D8: =订单明细!E8*订单明细!F8 -> 3692 | E8: 154.72 | F8: 1846
A9: MM07007 | B9: 田云飞 | C9: 昆明 | D9: =订单明细!E9*订单明细!F9 -> 3129.6 | E9: 116.55 | F9: 1564.8
A10: MM07008 | B10: 刘甜 | C10: 长沙 | D10: =订单明细!E10*订单明细!F10 -> 3808 | E10: 37.87 | F10: 1904
A11: MM07009 | B11: 冯浩 | C11: 武汉 | D11: =订单明细!E11*订单明细!F11 -> 1601.6 | E11: 120.93 | F11: 800.8
A12: MM07010 | B12: 古铭峰 | C12: 郑州 | D12: =订单明细!E12*订单明细!F12 -> 4896 | E12: 13.81 | F12: 2448
A13: MM07011 | B13: 蒲炎 | C13: 济南 | D13: =订单明细!E13*订单明细!F13 -> 5400 | E13: 68.86 | F13: 2700
A14: MM07012 | B14: 项静 | C14: 南京 | D14: =订单明细!E14*订单明细!F14 -> 1856 | E14: 77.29 | F14: 928
